Workbook

Sheet Лист1
A1: Школа | C1: МБОУ "Чув.Чебоксарская начальная школа-детский сад" | F1: Утвердил: | G1: должность | H1: Директор
A2: Типовое примерное меню приготавливаемых блюд | G2: фамилия | H2: Никонорова С.И.
A3: Возрастная категория | E3: 7-11 лет | G3: дата | I3: январь | J3: 2026
H4: день | I4: месяц | J4: год
A5: Неделя | B5: День недели | C5: Прием пищи | D5: Раздел меню | E5: Блюда | F5: Вес блюда, г | G5: Белки | H5: Жиры | I5: Углеводы | J5: Калорийность | K5: № рецептуры | L5: Цена
A6: 1 | B6: 1 | C6: Завтрак | D6: гор.блюдо | E6: борщ из свежей капусты с картофелем на мясном бульоне с мясом говядины, со сметаной | F6: 275 | G6: 11.47 | H6: 11.99 | I6: 24.66 | J6: 245.50
D7: гор.напиток | E7: Компот из сухофруктов | F7: 200 | G7: 0.66 | H7: 0.09 | I7: 22.03 | J7: 92.80
D9: хлеб | E9: Хлеб ржаной | F9: 30 | G9: 1.98 | H9: 0.36 | I9: 11.88 | J9: 59.40
D10: Салат | E10: Салат из моркови с яблоками | F10: 60 | G10: 0.64 | H10: 3.01 | I10: 5.11 | J10: 50.91
D13: итого | F13: =SUM(F6:F12) -> 565 | G13: =SUM(G6:G12) -> 15 | H13: 15 | I13: 64 | J13: 449 | L13: 74.77
A14: =A6 -> 1 | B14: =B6 -> 1 | C14: Завтрак 2 | D14: фрукты
D17: итого | F17: =SUM(F14:F16) -> 0 | G17: =SUM(G14:G16) -> 0 | H17: 0 | I17: 0 | J17: 0 | L17: 0
A18: =A6 -> 1 | B18: =B6 -> 1 | C18: Итого за день: | F18: =F13+F17 -> 565 | G18: =G13+G17 -> 14.75 | H18: 15.45 | I18: 63.68 | J18: 448.61 | K18: 0 | L18: 74.77
A19: 1 | B19: 2 | C19: Завтрак | D19: гор.блюдо | E19: Биточки рыбные с рисом отварным с маслом сливочным | F19: 228 | G19: 12.93 | H19: 12.41 | I19: 43.12 | J19: 304.30
D20: гор.напиток | E20: Чай с сахаром | F20: 200 | G20: 0.07 | H20: 0.02 | I20: 10.01 | J20: 40.00
D22: хлеб | E22: Хлеб ржаной | F22: 30 | G22: 1.98 | H22: 0.36 | I22: 11.88 | J22: 59.40
D23: Салат | E23: Салат изсвежей капусты с морковью | F23: 80 | G23: 1.05 | H23: 2.6 | I23: 5.17 | J23: 48.32
D26: итого | F26: =SUM(F19:F25) -> 538 | G26: =SUM(G19:G25) -> 16 | H26: =SUM(H19:H25) -> 15 | I26: =SUM(I19:I25) -> 70 | J26: =SUM(J19:J25) -> 452 | L26: 74.77
A27: =A19 -> 1 | B27: 2 | C27: Завтрак 2 | D27: фрукты
D30: итого | F30: =SUM(F27:F29) -> 0 | G30: =SUM(G27:G29) -> 0 | H30: 0 | I30: 0 | J30: 0 | L30: =SUM(L27:L29) -> 0
A31: =A19 -> 1 | B31: =B19 -> 2 | C31: Итого за день: | F31: =F26+F30 -> 538 | G31: =G26+G30 -> 16.03 | H31: 15.39 | I31: 70.18 | J31: 452.02 | K31: 0 | L31: 74.77
A32: 1 | B32: 3 | C32: Завтрак | D32: гор.блюдо | E32: гуляш из отварной говядины | F32: 100 | G32: 10.39 | H32: 14.79 | I32: 10.30 | J32: 221.00
D33: гор.напиток | E33: чай с ахаром, с лимоном | F33: 200 | G33: 0.11 | H33: 0.02 | I33: 10.15 | J33: 41.32
D34: хлеб | E34: Хлеб ржаной | F34: 50 | G34: 3.30 | H34: 0.60 | I34: 19.80 | J34: 99.00
E35: сыр порционно | F35: 10 | G35: 2.63 | H35: 2.66 | I35: 0.00 | J35: 34.33
D36: Гарнир | E36: каша гречневая рассыпчатая | F36: 150 | G36: 3.77 | H36: 2.29 | I36: 39.72 | J36: 214.00
D39: итого | F39: 528 | G39: =SUM(G32:G38) -> 20.2 | H39: =SUM(H32:H38) -> 20.36 | I39: =SUM(I32:I38) -> 79.97 | J39: =SUM(J32:J38) -> 609.65 | L39: 74.77
A40: =A32 -> 1 | B40: 3 | C40: Завтрак 2 | D40: фрукты
D43: итого | F43: =SUM(F40:F42) -> 0 | G43: =SUM(G40:G42) -> 0 | H43: =SUM(H40:H42) -> 0 | I43: =SUM(I40:I42) -> 0 | J43: =SUM(J40:J42) -> 0 | L43: 0
D44: итого
A45: =A32 -> 1 | B45: =B32 -> 3 | C45: Итого за день: | F45: =F39 -> 528 | G45: =G39 -> 20.2 | H45: 20.36 | I45: 79.97 | J45: 609.65 | K45: 0 | L45: 74.77
A46: 1 | B46: 4 | C46: Завтрак | D46: гор.блюдо | E46: птица запеченная | F46: 100 | G46: 10.42 | H46: 12.43 | I46: 8.65 | J46: 192.00
D47: гор.напиток | E47: компот из сухофруктов (75С) | F47: 200 | G47: 0.66 | H47: 0.09 | I47: 22.03 | J47: 92.80
D48: хлеб | E48: пшеничный | F48: 30 | G48: 2.28 | H48: 0.24 | I48: 14.76 | J48: 70.50
D49: хлеб | E49: ржаной | F49: 40 | G49: 2.64 | H49: 0.48 | I49: 15.84 | J49: 79.20
D50: гарнир | E50: пюре картофельное с маслом сливочным | F50: 153 | G50: 3.08 | H50: 6.25 | I50: 20.47 | J50: 150.45
D51: салат | E51: свекла отварная дольками | F51: 60 | G51: 1.08 | H51: 0.06 | I51: 5.88 | J51: 28.80
D53: итого | F53: =SUM(F46:F50) -> 523 | G53: =SUM(G46:G50) -> 19.08 | H53: 19.49 | I53: 81.75 | J53: 584.95 | L53: 74.77
A54: =A46 -> 1 | B54: =B46 -> 4 | C54: Завтрак 2 | D54: фрукты
D57: итого | F57: =SUM(F54:F56) -> 0 | G57: =SUM(G54:G56) -> 0 | H57: =SUM(H54:H56) -> 0 | I57: =SUM(I54:I56) -> 0 | J57: =SUM(J54:J56) -> 0 | L57: 0
D58: итого
A59: =A46 -> 1 | B59: =B46 -> 4 | C59: Итого за день: | F59: =F53 -> 523 | G59: =G53 -> 19.08 | H59: 19.49 | I59: 81.75 | J59: 584.95 | K59: 0 | L59: 74.77
A60: 1 | B60: 5 | C60: Завтрак | D60: гор.блюдо | E60: тефтели мясные запеченные в сметанно-томатном соусе | F60: 100 | G60: 7.28 | H60: 11.94 | I60: 8.36 | J60: 124.00
D61: гор.напиток | E61: напиток из свежих фруктов (75С) | F61: 200 | G61: 0.34 | H61: 0.17 | I61: 21.46 | J61: 103.50
D62: хлеб | E62: Хлеб пшеничный | F62: 45 | G62: 3.42 | H62: 0.36 | I62: 22.14 | J62: 105.75
E63: сыр порционно | F63: 15 | G63: 3.95 | H63: 3.99 | I63: 0.00 | J63: 51.50
D64: гарнир | E64: макаронные изделия отварные с маслом сливочным | F64: 185 | G64: 5.10 | H64: 3.62 | I64: 31.96 | J64: 176.10
D67: итого | F67: 510 | G67: =SUM(G60:G66) -> 20.094 | H67: =SUM(H60:H66) -> 20.08 | I67: =SUM(I60:I66) -> 83.92 | J67: =SUM(J60:J66) -> 560.85 | L67: 74.77
A68: =A60 -> 1 | B68: =B60 -> 5 | C68: Завтрак 2 | D68: фрукты
D71: итого | F71: =SUM(F68:F70) -> 0 | G71: =SUM(G68:G70) -> 0 | H71: =SUM(H68:H70) -> 0 | I71: =SUM(I68:I70) -> 0 | J71: =SUM(J68:J70) -> 0 | L71: 0
D72: итого
A73: =A60 -> 1 | B73: =B60 -> 5 | C73: Итого за день: | F73: =F67 -> 510 | G73: =G67 -> 20.094 | H73: 20.08 | I73: 83.92 | J73: 560.85 | K73: 0 | L73: 74.77
A74: 1 | B74: 6 | C74: Завтрак | D74: гор.блюдо | E74: сырники из товорога с кашей пшенной молочной с маслом сливочным | F74: 215 | G74: 10.55 | H74: 11.85 | I74: 39.40 | J74: 324.45
D75: гор.напиток | E75: кофейный напиток с молоком | F75: 200 | G75: 3.20 | H75: 2.70 | I75: 6.00 | J75: 60.70
D76: хлеб | E76: Хлеб ржаной | F76: 30 | G76: 1.98 | H76: 0.36 | I76: 11.88 | J76: 59.40
D77: фрукты | E77: плоды и ягоды свежие (яблоки) | F77: 100 | G77: 0.40 | H77: 0.40 | I77: 9.80 | J77: 47.00
D81: итого | F81: =SUM(F74:F77) -> 545 | G81: =SUM(G74:G77) -> 16.13 | H81: 15.31 | I81: 67.08 | J81: 491.55 | L81: 74.77
A82: =A74 -> 1 | B82: =B74 -> 6 | C82: Завтрак 2 | D82: фрукты
D85: итого | F85: =SUM(F82:F84) -> 0 | G85: =SUM(G82:G84) -> 0 | H85: =SUM(H82:H84) -> 0 | I85: =SUM(I82:I84) -> 0 | J85: =SUM(J82:J84) -> 0 | L85: 0
A86: =A74 -> 1 | B86: =B74 -> 6 | C86: Итого за день: | F86: =F81 -> 545 | G86: 16.13 | H86: 15.31 | I86: 67.08 | J86: 491.55 | K86: 0 | L86: 74.77
A87: 2 | B87: 1 | C87: Завтрак | D87: гор.блюдо | E87: Котлеты аппетитные с кашей гречневой рассыпчатой с маслом сливочным | F87: 228 | G87: 15.16 | H87: 16.19 | I87: 44.63 | J87: 386.76
D88: гор.напиток | E88: Чай с сахаром с лимоном | F88: 200 | G88: 0.11 | H88: 0.02 | I88: 10.15 | J88: 41.32
D89: хлеб | E89: Хлеб пшеничный | F89: 45 | G89: 3.42 | H89: 0.36 | I89: 22.14 | J89: 105.75
D90: салат | E90: Салат из свежей капусты с морковью | F90: 80 | G90: 1.05 | H90: 2.60 | I90: 5.17 | J90: 48.32
L92: 74.77
D94: итого | F94: 500 | G94: =SUM(G87:G93) -> 19.74 | H94: =SUM(H87:H93) -> 19.17 | I94: =SUM(I87:I93) -> 82.09 | J94: =SUM(J87:J93) -> 582.15 | L94: =SUM(L87:L93) -> 74.77
A95: =A87 -> 2 | B95: =B87 -> 1 | C95: Завтрак 2 | D95: фрукты
D98: итого | F98: =SUM(F95:F97) -> 0 | G98: =SUM(G95:G97) -> 0 | H98: 0 | I98: 0 | J98: 0 | L98: =SUM(L95:L97) -> 0
D99: итого
A100: =A87 -> 2 | B100: =B87 -> 1 | C100: Итого за день: | F100: =F94 -> 500 | G100: =G94 -> 19.74 | H100: 19.17 | I100: 82.09 | J100: 582.15 | K100: 0 | L100: 74.77
A101: 2 | B101: 2 | C101: Завтрак | D101: гор.блюдо | E101: рыба, тушенная в томате с овощами | F101: 100 | G101: 9.05 | H101: 6.09 | I101: 3.80 | J101: 105.00
D102: гор.напиток | E102: компот из свежих яблок (75С) | F102: 200 | G102: 0.16 | H102: 0.16 | I102: 17.90 | J102: 74.60
D103: хлеб | E103: Хлеб пшеничный | F103: 35 | G103: 2.66 | H103: 0.28 | I103: 17.22 | J103: 82.25
D104: салат | E104: Салат из отварной свеклы | F104: 60 | G104: 0.84 | H104: 3.61 | I104: 4.96 | J104: 55.68
D105: гарнир | E105: пюре картофельное с маслом сливочным | F105: 153 | G105: 3.08 | H105: 6.25 | I105: 20.47 | J105: 150.45
L106: 74.77
D108: итого | F108: =SUM(F101:F105) -> 548 | G108: =SUM(G101:G105) -> 15.79 | H108: 16.39 | I108: 64.35 | J108: 467.98 | L108: =SUM(L101:L107) -> 74.77
A109: =A101 -> 2 | B109: =B101 -> 2 | C109: Завтрак 2 | D109: фрукты
D112: итого | F112: =SUM(F109:F111) -> 0 | G112: =SUM(G109:G111) -> 0 | H112: 0 | I112: 0 | J112: 0 | L112: =SUM(L109:L111) -> 0
D113: итого
A114: =A101 -> 2 | B114: =B101 -> 2 | C114: Итого за день: | F114: =F108 -> 548 | G114: =G108 -> 15.79 | H114: 16.39 | I114: 64.35 | J114: 467.98 | K114: 0 | L114: 74.77
A115: 2 | B115: 3 | C115: Завтрак | D115: гор.блюдо | E115: плов из отварной говядины с рисовой крупой | F115: 200 | G115: 15.95 | H115: 19.55 | I115: 39.75 | J115: 408.42
D116: гор.напиток | E116: чай с сахаром | F116: 200 | G116: 0.07 | H116: 0.02 | I116: 10.01 | J116: 40.00
D117: хлеб | E117: Хлеб пшеничный | F117: 25 | G117: 1.52 | H117: 0.16 | I117: 9.84 | J117: 47.00
D118: хлеб | E118: Хлеб ржаной | F118: 20 | G118: 1.90 | H118: 0.20 | I118: 12.30 | J118: 58.75
D119: Фрукты | E119: плоды и ягоды свежие (яблоки) | F119: 100 | G119: 0.40 | H119: 0.40 | I119: 9.80 | J119: 47.00
L120: 74.77
D122: итого | F122: 640 | G122: =SUM(G115:G121) -> 19.84 | H122: =SUM(H115:H121) -> 20.33 | I122: =SUM(I115:I121) -> 81.7 | J122: 601.17 | L122: =SUM(L115:L121) -> 74.77
A123: =A115 -> 2 | B123: =B115 -> 3 | C123: Завтрак 2 | D123: фрукты
D126: итого | F126: =SUM(F123:F125) -> 0 | G126: =SUM(G123:G125) -> 0 | H126: 0 | I126: 0 | J126: 0 | L126: =SUM(L123:L125) -> 0
D127: итого
A128: =A115 -> 2 | B128: =B115 -> 3 | C128: Итого за день: | F128: =F122 -> 640 | G128: =G122 -> 19.84 | H128: 20.33 | I128: 81.7 | J128: 601.17 | K128: 0 | L128: 74.77
A129: 2 | B129: 4 | C129: Завтрак | D129: гор.блюдо | E129: котлета из мяса птицы с макаронными изделиями отварными, с маслом сливочным | F129: 230 | G129: 11.45 | H129: 12.46 | I129: 31.32 | J129: 289.95
D130: гор.напиток | E130: какао с молоком | F130: 200 | G130: 1.58 | H130: 3.54 | I130: 7.60 | J130: 78.60
D131: хлеб | E131: Хлеб пшеничный | F131: 30 | G131: 2.28 | H131: 0.24 | I131: 14.76 | J131: 70.50
D132: салат | E132: Салат из моркови | F132: 60 | G132: 0.74 | H132: 0.06 | I132: 9.98 | J132: 49.02
L134: 74.77
D136: итого | F136: 528 | G136: =SUM(G129:G135) -> 16.05 | H136: =SUM(H129:H135) -> 16.3 | I136: =SUM(I129:I135) -> 63.66 | J136: 488.07 | L136: =SUM(L129:L135) -> 74.77
A137: =A129 -> 2 | B137: =B129 -> 4 | C137: Завтрак 2 | D137: фрукты
D140: итого | F140: =SUM(F137:F139) -> 0 | G140: =SUM(G137:G139) -> 0 | H140: 0 | I140: 0 | J140: 0 | L140: =SUM(L137:L139) -> 0
A141: =A129 -> 2 | B141: =B129 -> 4 | C141: Итого за день: | F141: =F136 -> 528 | G141: =G136 -> 16.05 | H141: 16.3 | I141: 63.66 | J141: 488.07 | K141: 0 | L141: 74.77
A142: 2 | B142: 5 | C142: Завтрак | D142: гор.блюдо | E142: овощи тущеные с мясом | F142: 200 | G142: 12.48 | H142: 15.68 | I142: 19.34 | J142: 271.50
D143: гор.напиток | E143: компот из сухофрутов (75С) | F143: 200 | G143: 0.66 | H143: 0.09 | I143: 22.03 | J143: 92.80
D144: хлеб | E144: Хлеб ржаной | F144: 20 | G144: 1.32 | H144: 0.24 | I144: 7.92 | J144: 39.60
D145: фрукты | E145: плоды и ягоды свежие (апельсины) | F145: 180 | G145: 1.62 | H145: 0.36 | I145: 14.58 | J145: 77.40
D146: фрукты
L147: 74.77
D149: итого | F149: =SUM(F142:F148) -> 600 | G149: =SUM(G142:G148) -> 16.08 | H149: =SUM(H142:H148) -> 16.37 | I149: =SUM(I142:I148) -> 63.87 | J149: 481.3 | L149: =SUM(L142:L148) -> 74.77
A150: =A142 -> 2 | B150: =B142 -> 5 | C150: Завтрак 2 | D150: фрукты
D153: итого | F153: =SUM(F150:F152) -> 0 | G153: =SUM(G150:G152) -> 0 | H153: 0 | I153: 0 | J153: 0 | L153: =SUM(L150:L152) -> 0
D154: итого
A155: =A142 -> 2 | B155: =B142 -> 5 | C155: Итого за день: | F155: =F149 -> 600 | G155: =G149 -> 16.08 | H155: 16.37 | I155: 63.87 | J155: 481.3 | K155: 0 | L155: 74.77
A156: 2 | B156: 6 | C156: Завтрак | D156: гор.блюдо | E156: сырники из творога с кашей пшенной молочной с маслом сливочным | F156: 245 | G156: 16.02 | H156: 18.13 | I156: 42.98 | J156: 386.40
D157: гор.напиток | E157: чай "Витаминный" с шиповником | F157: 200 | G157: 0.24 | H157: 0.09 | I157: 12.43 | J157: 54.20
D158: хлеб | E158: Хлеб пшеничный | F158: 25 | G158: 1.90 | H158: 0.20 | I158: 12.30 | J158: 58.75
D159: хлеб | E159: Хлеб ржаной | F159: 30 | G159: 1.98 | H159: 0.36 | I159: 11.88 | J159: 59.40
D160: фрукты
L161: 74.77
D163: итого | F163: 575 | G163: =SUM(G156:G162) -> 20.14 | H163: =SUM(H156:H162) -> 18.78 | I163: =SUM(I156:I162) -> 79.59 | J163: 558.75 | L163: =SUM(L156:L162) -> 74.77
A164: =A156 -> 2 | B164: =B156 -> 6 | C164: Завтрак 2 | D164: фрукты
D167: итого | F167: =SUM(F164:F166) -> 0 | G167: =SUM(G164:G166) -> 0 | H167: 0 | I167: 0 | J167: 0 | L167: =SUM(L164:L166) -> 0
A168: =A156 -> 2 | B168: =B156 -> 6 | C168: Итого за день: | F168: =F163 -> 575 | G168: =G163 -> 20.14 | H168: 18.78 | I168: 79.59 | J168: 558.75 | L168: 74.77
C169: Среднее значение за период: | F169: =(F18+F31+F45+F59+F73+F86+F100+F114+F128+F141+F155+F168)/12 -> 550.0 | G169: =(G18+G31+G45+G59+G73+G86+G100+G114+G128+G141+G155+G168)/12 -> 17.8 | H169: 17.8 | I169: 73.5 | J169: 527.3 | L169: 74.8
